{"text_format":"1","workbook":"xlsx","n_sheets":3,"sheets":["Lagerlista","Lagerplocklista","Platsuppslag"],"not_rendered":{"charts":0,"images":0,"macros":1,"external_links":0,"defined_names":8,"comments":0,"pivot_tables":0},"unopened":[],"bounds":{"document_bytes":16777216,"sheet_cells":100000,"rows_first":2000,"rows_last":500,"rows_between":2000,"halvings":0,"cell_chars":16384,"cell_head_chars":4096},"cells_cut":0,"cells_raw":0,"read":"whole","date_system":"1900"}

{"sheet":"Lagerlista","index":0,"n_rows":15,"n_cols":11,"rows_kept":15,"cut":false,"hidden":false,"merged":[]}
[null,"LAGERLISTA"]
[null,"SUMMA LAGERVÄRDE:","LAGERARTIKLAR:","PLATSANTAL:","LAGERPLOCKLISTA","PLATSUPPSLAG"]
[null,{"$f":"SUM(Lagerlista[LAGERVÄRDE])","v":4649},{"$f":"COUNTA(Lagerlista[BESKRIVNING])","v":11},{"$f":"SUMPRODUCT((1/COUNTIF(Lagerlista[PLATSNR],Lagerlista[PLATSNR]&\"\")))","v":6}]
[null,"SKU","BESKRIVNING","PLATSNR","PLACERING","ENHET","ANTAL","ORDERANTAL","KOSTNAD","LAGERVÄRDE","BESTÄLL"]
[null,"SP7875","Artikel 1","T345",{"$f":"IFERROR(VLOOKUP(Lagerlista[[#This Row],[PLATSNR]],PlatsUppslag[],3,FALSE),\"\")","v":"Rad 2, fack 1"},"Styck",20,10,30,{"$f":"Lagerlista[[#This Row],[ANTAL]]*Lagerlista[[#This Row],[KOSTNAD]]","v":600},{"$f":"IFERROR(IF(Lagerlista[[#This Row],[ANTAL]]<=Lagerlista[[#This Row],[ORDERANTAL]],1,0),0)","v":0}]
[null,"TR87680","Objekt 2","T345",{"$f":"IFERROR(VLOOKUP(Lagerlista[[#This Row],[PLATSNR]],PlatsUppslag[],3,FALSE),\"\")","v":"Rad 2, fack 1"},"Styck",30,15,40,{"$f":"Lagerlista[[#This Row],[ANTAL]]*Lagerlista[[#This Row],[KOSTNAD]]","v":1200},{"$f":"IFERROR(IF(Lagerlista[[#This Row],[ANTAL]]<=Lagerlista[[#This Row],[ORDERANTAL]],1,0),0)","v":0}]
[null,"MK676554","Objekt 3","T5789",{"$f":"IFERROR(VLOOKUP(Lagerlista[[#This Row],[PLATSNR]],PlatsUppslag[],3,FALSE),\"\")","v":"Rad 1, fack 1"},"Styck",10,5,5,{"$f":"Lagerlista[[#This Row],[ANTAL]]*Lagerlista[[#This Row],[KOSTNAD]]","v":50},{"$f":"IFERROR(IF(Lagerlista[[#This Row],[ANTAL]]<=Lagerlista[[#This Row],[ORDERANTAL]],1,0),0)","v":0}]
[null,"YE98767","Artikel 4","T9876",{"$f":"IFERROR(VLOOKUP(Lagerlista[[#This Row],[PLATSNR]],PlatsUppslag[],3,FALSE),\"\")","v":"Rad 3, fack 2"},"Låda (10 st)",40,10,15,{"$f":"Lagerlista[[#This Row],[ANTAL]]*Lagerlista[[#This Row],[KOSTNAD]]","v":600},{"$f":"IFERROR(IF(Lagerlista[[#This Row],[ANTAL]]<=Lagerlista[[#This Row],[ORDERANTAL]],1,0),0)","v":0}]
[null,"XR23423","Artikel 5","T098",{"$f":"IFERROR(VLOOKUP(Lagerlista[[#This Row],[PLATSNR]],PlatsUppslag[],3,FALSE),\"\")","v":"Rad 3, fack 1"},"Styck",12,10,26,{"$f":"Lagerlista[[#This Row],[ANTAL]]*Lagerlista[[#This Row],[KOSTNAD]]","v":312},{"$f":"IFERROR(IF(Lagerlista[[#This Row],[ANTAL]]<=Lagerlista[[#This Row],[ORDERANTAL]],1,0),0)","v":0}]
[null,"PW98762","Artikel 6","T345",{"$f":"IFERROR(VLOOKUP(Lagerlista[[#This Row],[PLATSNR]],PlatsUppslag[],3,FALSE),\"\")","v":"Rad 2, fack 1"},"Styck",7,10,50,{"$f":"Lagerlista[[#This Row],[ANTAL]]*Lagerlista[[#This Row],[KOSTNAD]]","v":350},{"$f":"IFERROR(IF(Lagerlista[[#This Row],[ANTAL]]<=Lagerlista[[#This Row],[ORDERANTAL]],1,0),0)","v":1}]
[null,"BM87684","Artikel 7","T349",{"$f":"IFERROR(VLOOKUP(Lagerlista[[#This Row],[PLATSNR]],PlatsUppslag[],3,FALSE),\"\")","v":"Rad 1, fack 2"},"Styck",10,5,10,{"$f":"Lagerlista[[#This Row],[ANTAL]]*Lagerlista[[#This Row],[KOSTNAD]]","v":100},{"$f":"IFERROR(IF(Lagerlista[[#This Row],[ANTAL]]<=Lagerlista[[#This Row],[ORDERANTAL]],1,0),0)","v":0}]
[null,"BH67655","Artikel 8","T5789",{"$f":"IFERROR(VLOOKUP(Lagerlista[[#This Row],[PLATSNR]],PlatsUppslag[],3,FALSE),\"\")","v":"Rad 1, fack 1"},"Styck",19,10,3,{"$f":"Lagerlista[[#This Row],[ANTAL]]*Lagerlista[[#This Row],[KOSTNAD]]","v":57},{"$f":"IFERROR(IF(Lagerlista[[#This Row],[ANTAL]]<=Lagerlista[[#This Row],[ORDERANTAL]],1,0),0)","v":0}]
[null,"WT98768","Artikel 9","T9875",{"$f":"IFERROR(VLOOKUP(Lagerlista[[#This Row],[PLATSNR]],PlatsUppslag[],3,FALSE),\"\")","v":"Rad 2, fack 2"},"Paket (5 st)",20,30,14,{"$f":"Lagerlista[[#This Row],[ANTAL]]*Lagerlista[[#This Row],[KOSTNAD]]","v":280},{"$f":"IFERROR(IF(Lagerlista[[#This Row],[ANTAL]]<=Lagerlista[[#This Row],[ORDERANTAL]],1,0),0)","v":1}]
[null,"TS3456","Artikel 10","T349",{"$f":"IFERROR(VLOOKUP(Lagerlista[[#This Row],[PLATSNR]],PlatsUppslag[],3,FALSE),\"\")","v":"Rad 1, fack 2"},"Styck",15,8,60,{"$f":"Lagerlista[[#This Row],[ANTAL]]*Lagerlista[[#This Row],[KOSTNAD]]","v":900},{"$f":"IFERROR(IF(Lagerlista[[#This Row],[ANTAL]]<=Lagerlista[[#This Row],[ORDERANTAL]],1,0),0)","v":0}]
[null,"WDG123","Artikel 11","T349",{"$f":"IFERROR(VLOOKUP(Lagerlista[[#This Row],[PLATSNR]],PlatsUppslag[],3,FALSE),\"\")","v":"Rad 1, fack 2"},"Styck",25,15,8,{"$f":"Lagerlista[[#This Row],[ANTAL]]*Lagerlista[[#This Row],[KOSTNAD]]","v":200},{"$f":"IFERROR(IF(Lagerlista[[#This Row],[ANTAL]]<=Lagerlista[[#This Row],[ORDERANTAL]],1,0),0)","v":0}]

{"sheet":"Lagerplocklista","index":1,"n_rows":9,"n_cols":9,"rows_kept":9,"cut":false,"hidden":false,"merged":[]}
[null,"LAGERPLOCKLISTA"]
[null,null,"LAGERLISTA"]
[]
[null,"ORDERNR","SKU","PLOCKANTAL","TILLGÄNGL. ANTAL","ARTIKELBESKRIVNING","ENHET","PLATSNR","PLACERING"]
[null,"TP001-1","SP7875",3,{"$f":"IFERROR(VLOOKUP(Lagerplocklista[[#This Row],[SKU]],Lagerlista[],6,FALSE),\"\")","v":20},{"$f":"IFERROR(VLOOKUP(Lagerplocklista[[#This Row],[SKU]],Lagerlista[],2,FALSE),\"\")","v":"Artikel 1"},{"$f":"IFERROR(VLOOKUP(Lagerplocklista[[#This Row],[SKU]],Lagerlista[],5,FALSE),\"\")","v":"Styck"},{"$f":"IFERROR(VLOOKUP(Lagerplocklista[[#This Row],[SKU]],Lagerlista[],3,FALSE),\"\")","v":"T345"},{"$f":"IFERROR(VLOOKUP(Lagerplocklista[[#This Row],[SKU]],Lagerlista[],4,FALSE),\"\")","v":"Rad 2, fack 1"}]
[null,"TP001-1","YE98767",1,{"$f":"IFERROR(VLOOKUP(Lagerplocklista[[#This Row],[SKU]],Lagerlista[],6,FALSE),\"\")","v":40},{"$f":"IFERROR(VLOOKUP(Lagerplocklista[[#This Row],[SKU]],Lagerlista[],2,FALSE),\"\")","v":"Artikel 4"},{"$f":"IFERROR(VLOOKUP(Lagerplocklista[[#This Row],[SKU]],Lagerlista[],5,FALSE),\"\")","v":"Låda (10 st)"},{"$f":"IFERROR(VLOOKUP(Lagerplocklista[[#This Row],[SKU]],Lagerlista[],3,FALSE),\"\")","v":"T9876"},{"$f":"IFERROR(VLOOKUP(Lagerplocklista[[#This Row],[SKU]],Lagerlista[],4,FALSE),\"\")","v":"Rad 3, fack 2"}]
[null,"TP001-1","BM87684",2,{"$f":"IFERROR(VLOOKUP(Lagerplocklista[[#This Row],[SKU]],Lagerlista[],6,FALSE),\"\")","v":10},{"$f":"IFERROR(VLOOKUP(Lagerplocklista[[#This Row],[SKU]],Lagerlista[],2,FALSE),\"\")","v":"Artikel 7"},{"$f":"IFERROR(VLOOKUP(Lagerplocklista[[#This Row],[SKU]],Lagerlista[],5,FALSE),\"\")","v":"Styck"},{"$f":"IFERROR(VLOOKUP(Lagerplocklista[[#This Row],[SKU]],Lagerlista[],3,FALSE),\"\")","v":"T349"},{"$f":"IFERROR(VLOOKUP(Lagerplocklista[[#This Row],[SKU]],Lagerlista[],4,FALSE),\"\")","v":"Rad 1, fack 2"}]
[null,"TP001-1","TS3456",6,{"$f":"IFERROR(VLOOKUP(Lagerplocklista[[#This Row],[SKU]],Lagerlista[],6,FALSE),\"\")","v":15},{"$f":"IFERROR(VLOOKUP(Lagerplocklista[[#This Row],[SKU]],Lagerlista[],2,FALSE),\"\")","v":"Artikel 10"},{"$f":"IFERROR(VLOOKUP(Lagerplocklista[[#This Row],[SKU]],Lagerlista[],5,FALSE),\"\")","v":"Styck"},{"$f":"IFERROR(VLOOKUP(Lagerplocklista[[#This Row],[SKU]],Lagerlista[],3,FALSE),\"\")","v":"T349"},{"$f":"IFERROR(VLOOKUP(Lagerplocklista[[#This Row],[SKU]],Lagerlista[],4,FALSE),\"\")","v":"Rad 1, fack 2"}]
[null,"TP001-1","MK676554",3,{"$f":"IFERROR(VLOOKUP(Lagerplocklista[[#This Row],[SKU]],Lagerlista[],6,FALSE),\"\")","v":10},{"$f":"IFERROR(VLOOKUP(Lagerplocklista[[#This Row],[SKU]],Lagerlista[],2,FALSE),\"\")","v":"Objekt 3"},{"$f":"IFERROR(VLOOKUP(Lagerplocklista[[#This Row],[SKU]],Lagerlista[],5,FALSE),\"\")","v":"Styck"},{"$f":"IFERROR(VLOOKUP(Lagerplocklista[[#This Row],[SKU]],Lagerlista[],3,FALSE),\"\")","v":"T5789"},{"$f":"IFERROR(VLOOKUP(Lagerplocklista[[#This Row],[SKU]],Lagerlista[],4,FALSE),\"\")","v":"Rad 1, fack 1"}]

{"sheet":"Platsuppslag","index":2,"n_rows":11,"n_cols":7,"rows_kept":11,"cut":false,"hidden":false,"merged":[]}
[null,"PLATSUPPSLAG"]
[null,"LAGERLISTA"]
[]
[null,"PLATSNR","BESKRIVNING","PLACERING","BREDD","HÖJD","LÄNGD"]
[null,"T345","Stor plats","Rad 2, fack 1",50,10,10]
[null,"T5789","Liten plats","Rad 1, fack 1",25,5,5]
[null,"T9876","Stor plats","Rad 3, fack 2",50,10,10]
[null,"T098","Medelstor plats","Rad 3, fack 1",30,7,10]
[null,"T349","Liten plats","Rad 1, fack 2",25,5,5]
[null,"T5789","Stor plats","Rad 4, fack 5",50,10,10]
[null,"T9875","Stor plats","Rad 2, fack 2",50,10,10]